Cogmind - Beta 16 @@@ ROGUE MODE // 2025.11.08 @ 22:01:17 Player: Mozco Result: Destroyed by C-17 Slicer with Blade Saw Performance ------------- Evolutions (2) 1000 Regions Visited (9) 1800 Robots Destroyed (138) 690 Value Destroyed (4801) 4801 Prototype IDs (15) 300 Alien Tech Used (0) 0 Bonus (2721) 2721 TOTAL SCORE: 11312 Bonus ------- High Alert Combat Kills 265 Follower Combat Kills 356 Entered Garrisons 600 Used RIF Installer 1500 Cogmind --------- Core Integrity 0/550 Matter 250/300 Energy 147/150 System Corruption 2% Temperature Hot (226) Movement Walking (540) Ox6 Location -8/Garrison Parts ------- > --- POWER (1) -------- Light Angular Momentum Engine > --- PROPULSION (4) --- Aluminum Leg > --- UTILITY (4) ------ Improved Heat Sink High-capacity Storage Unit Improved Medium Armor Plating Hacking Suite > --- WEAPON (2) ------- Arc Projector Heavy Particle Cannon > --- INVENTORY (20) --- Nuclear Core Improved Aluminum Leg Insulated Plating Hacking Suite Relay Coupler [NC] (26) Relay Coupler [NC] (24) Relay Coupler [Grunt] (29) Relay Coupler [Heavy] (13) Arc Projector Arc Projector Arc Projector Heavy Particle Gun Rocket Launcher Mini Grenade Launcher Improved Datajack Remote Datajack EM Surge Trap EM Surge Trap Peak State ------------ > --- POWER ------------ Light Angular Momentum Engine > --- PROPULSION ------- Aluminum Leg Aluminum Leg Carbon-fiber Leg Flexi-carbon Leg > --- UTILITY ---------- Improved Heat Sink High-capacity Storage Unit Improved Medium Armor Plating Hacking Suite > --- WEAPON ----------- Heavy Particle Cannon Improved Datajack > --- INVENTORY -------- Nuclear Core Improved Aluminum Leg Improved Medium Armor Plating Insulated Plating Hacking Suite Relay Coupler [NC] Relay Coupler [NC] Relay Coupler [Grunt] Relay Coupler [Heavy] Arc Projector Arc Projector Arc Projector Arc Projector Heavy Particle Gun Heavy Particle Gun Rocket Launcher Mini Grenade Launcher Remote Datajack EM Surge Trap EM Surge Trap [Rating: 38] Favorites ----------- Power Nuclear Core Engine Improved Ion Engine Power Core Nuclear Core Propulsion Aluminum Leg Leg Aluminum Leg Utility Hacking Suite Device Heat Sink Storage High-capacity Storage Unit Processor Targeting Computer Hackware Hacking Suite Protection Improved Medium Armor Plating Weapon Advanced Beam Cannon Energy Gun Medium Laser Energy Cannon Advanced Beam Cannon Ballistic Gun Autogun Launcher Mini Grenade Launcher Special Weapon Remote Datajack Slashing Weapon Katana Special Melee Weapon Improved Datajack Build | -11 -10 -10 -9 -9 -9 -8 -8 -8 -8 ------- Run | Yrd Mat Min Mat Sto Gar Mat Gar Mat Gar Slots Evolved 4 | . . . 2 . . 2 . . . Power . | . . . . . . . . . . Propulsion 2 | . . . 1 . . 1 . . . Utility 2 | . . . 1 . . 1 . . . Weapon . | . . . . . . . . . . Parts Attached 104 | 6 11 . 12 9 19 30 11 2 4 Power 16 | 1 1 . 1 1 4 7 . . 1 Engine 15 | 1 1 . 1 1 4 6 . . 1 Core 1 | . . . . . . 1 . . . Reactor . | . . . . . . . . . . Propulsion 35 | 2 4 . 3 4 7 7 5 2 1 Treads . | . . . . . . . . . . Leg 35 | 2 4 . 3 4 7 7 5 2 1 Wheel . | . . . . . . . . . . Hover . | . . . . . . . . . . Flight . | . . . . . . . . . . Utility 22 | 1 4 . 2 1 2 9 2 . 1 Device 4 | . 1 . 1 1 . 1 . . . Storage 5 | 1 1 . 1 . 1 1 . . . Processor 1 | . . . . . . 1 . . . Hackware 6 | . 1 . . . . 4 1 . . Protection 6 | . 1 . . . 1 2 1 . 1 Artifact . | . . . . . . . . . . Weapon 31 | 2 2 . 6 3 6 7 4 . 1 Energy Gun 14 | 2 . . 4 1 1 3 2 . 1 Energy Cannon 5 | . . . . 1 1 2 1 . . Ballistic Gun 1 | . . . 1 . . . . . . Ballistic Cannon . | . . . . . . . . . . Launcher 6 | . 2 . 1 1 1 1 . . . Special Weapon 1 | . . . . . . . 1 . . Impact Weapon . | . . . . . . . . . . Slashing Weapon 2 | . . . . . 2 . . . . Piercing Weapon . | . . . . . . . . . . Special Melee Weapon 2 | . . . . . 1 1 . . . Unidentified Prototypes 5 | . . . 1 2 . 2 . . . Parts Lost 28 | . 3 . 1 5 8 6 2 1 2 Power 7 | . 1 . . 1 3 2 . . . Propulsion 13 | . 2 . . 2 4 2 1 1 1 Utility 4 | . . . . 1 . 1 1 . 1 Weapon 4 | . . . 1 1 1 1 . . . Highest Loss Streak 4 | . 3 . 1 3 2 4 2 1 2 To Critical Strikes . | . . . . . . . . . . Average Backups 15 | . 6 10 10 13 16 19 18 18 18 Power . | . . . . . . 1 1 1 1 Propulsion 2 | . 2 1 1 . . 4 2 1 1 Utility 5 | . 1 3 3 6 7 6 6 7 6 Weapon 6 | . 2 4 3 5 7 7 8 8 7 Tool/Special . | . . . . . . . . . . Unused Backups 21 | . . 1 1 1 2 7 1 . 8 Power 1 | . . . . . . 1 . . . Propulsion 4 | . . . . . 1 1 1 . 1 Utility 9 | . . . . . 1 2 . . 6 Weapon 7 | . . 1 1 1 . 3 . . 1 Tool/Special . | . . . . . . . . . . Average Slot Usage (%) 96 | . 98 100 95 96 86 98 98 90 95 Engine 7 | . 13 14 11 10 8 5 . . 1 Core 2 | . . . . . . 3 9 9 8 Leg 31 | . 27 28 30 30 23 35 35 36 35 Device 3 | . . . 9 10 3 2 . . 5 Storage 10 | . 14 14 11 11 11 9 9 9 9 Hackware 15 | . 9 14 11 11 11 22 17 9 9 Protection 3 | . 2 . . . 7 1 7 9 8 Energy Gun 10 | . 27 28 17 11 4 4 4 9 1 Energy Cannon 5 | . . . . 8 4 8 5 . 8 Special Weapon 1 | . . . . . . . 8 9 7 Slashing Weapon 1 | . . . . . 7 . . . . Special Melee Weapon 1 | . . . . . 1 3 . . . Peak Build Rating 38 | 6 10 10 15 19 22 30 32 32 38 Average Rating 21 | 5 8 10 13 17 18 26 30 29 32 On Entrance 16 | . 6 10 10 14 18 18 30 29 32 Avg Prop Armor Cover (%) . | . . . . . . . . . . Naked Turns . | . . . . . . . . . . Heaviest Build 64 | 11 18 18 33 35 57 59 63 61 64 Greatest Support 50 | 20 20 20 30 30 33 43 43 50 50 Greatest Overweight (x) 8 | 1 . . 1 1 8 2 1 1 1 Average Overweight (x) . | . . . . 1 1 1 1 1 1 Largest Inventory Capacity 20 | 8 10 10 15 15 20 20 20 20 20 Average Capacity 16 | 7 8 10 11 15 17 20 20 20 20 Most Carried 20 | 2 10 10 11 15 20 20 20 20 20 Average Carried 15 | . 6 9 10 13 16 19 19 19 19 Final Capacity 20 | 8 10 10 15 15 20 20 20 20 20 Final Carried 20 | 2 10 10 11 15 20 20 20 20 18 Class Distribution -------------------- 70% | Scavenger-Mutant 26% | Mutant Dominant Class ---------------- Mutant | -10/Materials Mutant | -10/Mines Mutant | -9/Materials Scavenger-Mutant | -9/Storage Scavenger-Mutant | -9/Garrison Scavenger-Mutant | -8/Materials Scavenger-Mutant | -8/Garrison Scavenger-Mutant | -8/Materials Scavenger-Mutant | -8/Garrison Resources | -11 -10 -10 -9 -9 -9 -8 -8 -8 -8 ----------- Run | Yrd Mat Min Mat Sto Gar Mat Gar Mat Gar Matter Collected 2298 | 177 252 . 229 212 429 664 230 45 60 Remotely . | . . . . . . . . . . Salvage Created 4430 | . 551 . 394 869 794 1137 341 88 256 Parts 260 | . 40 . 25 58 50 51 16 2 18 Haulers Intercepted 8 | . 2 . 1 1 . 4 . . . Recyclers Shooed 1 | . . . . 1 . . . . . Parts Field Recycled . | . . . . . . . . . . Retrieved Matter . | . . . . . . . . . . Parts Self-Destructed . | . . . . . . . . . . Prevented . | . . . . . . . . . . Parts Restored . | . . . . . . . . . . Kills | -11 -10 -10 -9 -9 -9 -8 -8 -8 -8 ------- Run | Yrd Mat Min Mat Sto Gar Mat Gar Mat Gar Combat Hostiles Destroyed 105 | . 15 . 8 18 27 21 8 2 6 Melee 2 | . . . . . 2 . . . . Guns 34 | . 9 . 6 6 6 2 2 2 1 Cannons 32 | . . . . 7 9 7 5 . 4 AOE 36 | . 6 . 2 5 10 11 1 . 1 Classes Destroyed 17 | . 7 . 2 1 1 4 . . 2 Worker 7 | . 1 . . 1 . 5 . . . Builder 4 | . . . 1 1 . 2 . . . Tunneler 1 | . 1 . . . . . . . . Hauler 8 | . 2 . 1 1 . 4 . . . Recycler 2 | . . . . 1 . 1 . . . Mechanic 1 | . . . . . . 1 . . . Operator 3 | . 1 . 1 1 . . . . . Watcher 7 | . 2 . 1 2 . 2 . . . Swarmer 32 | . 9 . . 6 11 3 3 . . Cutter 1 | . . . . . . . . . 1 Grunt 45 | . 6 . 5 3 14 9 4 2 2 Brawler 1 | . . . . . . 1 . . . Duelist 3 | . . . . . 2 1 . . . Sentry 19 | . . . 3 9 . 5 1 . 1 Hunter 1 | . . . . . . 1 . . . Programmer 2 | . . . . . . . . . 2 Heavy 1 | . . . . . . 1 . . . Best Kill Streak 9 | . 4 . 5 7 7 9 2 1 3 Combat Bots Only 7 | . 3 . 4 7 7 6 2 1 3 Max Kills in Single Turn 5 | . 4 . 1 5 3 4 1 1 1 Gunslinging . | . . . . . . . . . . Exploded 5 | . 3 . 1 5 3 3 1 . 1 Melee 1 | . . . . . 1 . . . . Uniques/NPCs Destroyed . | . . . . . . . . . . Combat | -11 -10 -10 -9 -9 -9 -8 -8 -8 -8 -------- Run | Yrd Mat Min Mat Sto Gar Mat Gar Mat Gar Hostile Shots Fired 550 | . 75 4 44 90 82 107 60 11 77 Missed 162 | . 29 3 11 25 21 29 18 6 20 Hits 388 | . 46 1 33 65 61 78 42 5 57 Melee 8 | . . . . . 1 1 . . 6 Projectile 380 | . 46 1 33 65 60 77 42 5 51 AOE 1 | . . . . . . . . . 1 Critical Strikes 16 | . . . . 2 1 4 2 . 7 Actively Blocked 2 | . . . . . . . 2 . . Damage Taken 5865 | . 511 15 483 872 814 1543 614 109 904 Core 985 | . 51 . 104 165 115 180 130 . 240 Absorbed by Shields 26 | . . . . . . . . . 26 Redirected to Shielding 102 | . . . . . . . 102 . . Regen/Repaired (Parts) 481 | . . . 111 . . 370 . . . Core Remaining (%) 61 | 100 . 79 . . 4 . . . . Volleys Fired 359 | . 58 . 29 46 44 72 67 10 33 Largest 2 | . 2 . 2 2 2 2 1 1 2 Hottest 143 | . 90 . 106 124 133 143 63 55 130 Shots Fired 551 | . 107 . 58 91 65 107 67 10 46 Gun 296 | . 104 . 55 56 16 26 16 10 13 Cannon 201 | . . . . 34 33 67 35 . 32 Launcher 39 | . 3 . 3 1 16 14 1 . 1 Special 15 | . . . . . . . 15 . . Kinetic 10 | . . . 8 2 . . . . . Thermal 473 | . 104 . 47 88 49 93 47 . 45 Explosive 39 | . 3 . 3 1 16 14 1 . 1 Electromagnetic 14 | . . . . . . . 4 10 . Robot Hit Streak 13 | . 7 . 7 9 6 10 13 3 8 Robot Miss Streak 7 | . 3 . 2 3 4 7 3 1 5 Penetration Max . | . . . . . . . . . . Secondary Targets 1 | . 1 . . . . . . . . Max Gunslinging Chain 1 | . 1 . . . . . . . . Shots Hit Robots 357 | . 66 . 37 52 57 86 33 7 19 Core Hits 223 | . 33 . 18 32 48 65 13 3 11 Critical Kills . | . . . . . . . . . . Critical Parts Destroyed . | . . . . . . . . . . Critical Strikes 7 | . 3 . . 3 1 . . . . Burn 6 | . 3 . . 3 . . . . . Sever 1 | . . . . . 1 . . . . Melee Attacks 40 | . . . . . 34 6 . . . Impact . | . . . . . . . . . . Slashing 30 | . . . . . 30 . . . . Piercing . | . . . . . . . . . . Sneak Attacks 7 | . . . . . 4 3 . . . Combat Hostiles . | . . . . . . . . . . Follow-up Attacks 2 | . . . . . 2 . . . . Damage Inflicted 10246 | . 1142 13 721 1258 2735 3174 550 95 558 Guns 2643 | . 797 . 497 488 181 333 141 95 111 Cannons 2799 | . . . . 560 313 1186 325 . 415 Explosions 3821 | . 334 . 224 203 1298 1646 84 . 32 Melee 943 | . . . . . 943 . . . . Ramming 40 | . 11 13 . 7 . 9 . . . Kinetic 110 | . . . 81 29 . . . . . Thermal 5237 | . 797 . 416 1019 494 1519 466 . 526 Explosive 3821 | . 334 . 224 203 1298 1646 84 . 32 Electromagnetic 95 | . . . . . . . . 95 . Impact . | . . . . . . . . . . Slashing 943 | . . . . . 943 . . . . Piercing . | . . . . . . . . . . Highest Corruption 5 | . 1 1 5 5 5 . . . 2 Average Corruption 3 | . 1 1 5 5 5 . . . 1 Corruption Purged . | . . . . . . . . . . Corruption Blocked . | . . . . . . . . . . Effects 81 | . 6 4 9 24 38 . . . . Message Errors 15 | . . 1 2 1 11 . . . . Matter Fused 23 | . 3 . 1 8 11 . . . . Heat Flow Errors 12 | . 1 1 2 4 4 . . . . Energy Discharges 4 | . . . . 3 1 . . . . Parts Rejected 3 | . 1 . 1 . 1 . . . . Data Loss (minor) 14 | . 1 2 3 3 5 . . . . Data Loss (major) 4 | . . . . 1 3 . . . . Misfires 4 | . . . . 3 1 . . . . Alerts 1 | . . . . 1 . . . . . Weapon Failures 1 | . . . . . 1 . . . . Overload Shots . | . . . . . . . . . . Overflow Damage 90 | . 2 . 18 . 42 21 . . 7 Projectiles 11 | . . . . . . 4 . . 7 Explosions 79 | . 2 . 18 . 42 17 . . . Melee . | . . . . . . . . . . Knockbacks . | . . . . . . . . . . Impact . | . . . . . . . . . . Kinetic . | . . . . . . . . . . Secondary . | . . . . . . . . . . Self-Inflicted Damage 190 | . 37 . . . 153 . . . . Shots 7 | . 1 . . . 6 . . . . Rammed . | . . . . . . . . . . Targets Rammed 10 | . 2 3 . 3 . 2 . . . Kicked 10 | . 2 3 . 3 . 2 . . . Crushed . | . . . . . . . . . . Highest Temperature 401 | . 401 154 183 306 275 282 159 58 278 Average Temperature 77 | . 99 80 52 80 73 80 48 24 88 Received Heat Transfer 1812 | . 174 9 162 306 237 474 252 54 144 Effects 3 | . 2 . . 1 . . . . . Shutdowns 1 | . 1 . . . . . . . . Matter Decay 1 | . . . . 1 . . . . . Damage (minor) 1 | . 1 . . . . . . . . Siege Activations . | . . . . . . . . . . Martial Activations . | . . . . . . . . . . Shielding Activations . | . . . . . . . . . . Robots Disrupted . | . . . . . . . . . . Combat Hostiles . | . . . . . . . . . . Robots Corrupted . | . . . . . . . . . . Combat Hostiles . | . . . . . . . . . . Parts Fried . | . . . . . . . . . . Impact Corruptions . | . . . . . . . . . . Robots Melted 1 | . . . . . . 1 . . . Combat Hostiles 1 | . . . . . . 1 . . . Parts Melted 25 | . 6 . 3 2 3 9 . . 2 Heat Transferred 10353 | . 2304 . 1052 2183 835 2445 794 . 740 Parts Sabotaged . | . . . . . . . . . . Parts Stolen . | . . . . . . . . . . Parts Stripped . | . . . . . . . . . . Power Chain Reactions . | . . . . . . . . . . Alert | -11 -10 -10 -9 -9 -9 -8 -8 -8 -8 ------- Run | Yrd Mat Min Mat Sto Gar Mat Gar Mat Gar Maximum Alert Level 3 | . . . . 1 3 2 2 1 1 Low Security (%) 48 | 100 100 100 100 86 3 20 38 54 10 Level 1 30 | . . . . 13 26 46 50 45 89 Level 2 18 | . . . . . 51 32 10 . . Level 3 2 | . . . . . 18 . . . . Level 4 . | . . . . . . . . . . Level 5 . | . . . . . . . . . . High Security . | . . . . . . . . . . Max Security . | . . . . . . . . . . Peak Influence 847 | . 156 25 114 224 847 487 404 278 374 Initial 412 | . . 25 . 24 138 412 . 196 169 Average 234 | . 86 1 66 161 503 281 240 219 271 Influence Increases 3908 | . 533 . 296 613 789 804 424 204 245 Destroy 0b10 Robot/C 2110 | . 300 . 160 360 480 435 165 105 105 Destroy 0b10 Robot/NC 189 | . 35 . 20 35 15 68 8 8 . Destroy Leader 494 | . 78 . 64 136 28 144 16 20 8 Allied During Kill 67 | . . . . . . 33 10 21 3 Trap Triggered on 0b10 8 | . . . . . . . . . 8 Successful Hack 176 | . 20 . 32 35 24 29 16 11 9 Select Force Hacks 60 | . 60 . . . . . . . . Disable Machine 183 | . . . . 15 12 24 48 24 60 Anti-Garrison Action 265 | . . . . . 113 . 114 . 38 Destroy Structure 263 | . 25 . 20 17 102 59 23 3 14 Partial Spotted 15 | . . . . 15 . . . . . Lose Combat Pursuer 78 | . 15 . . . 15 12 24 12 . Influence Decreases 3534 | . 468 65 238 458 155 1651 20 348 131 Entered New Map 883 | . . 40 . 34 75 435 . 208 91 Time Decay 1830 | . 438 25 236 374 . 667 . 90 . Lost Part 272 | . 30 . 2 50 80 60 20 10 20 Lost Ally 120 | . . . . . . 60 . 40 20 Purge Threat 429 | . . . . . . 429 . . . Squads Dispatched 13 | . 3 . 3 4 . 2 . 1 . Investigation 4 | . 2 . . 1 . 1 . . . Extermination . | . . . . . . . . . . Reinforcement 7 | . 1 . 3 2 . 1 . . . Assault . | . . . . . . . . . . Garrison 2 | . . . . 1 . . . 1 . Intercept . | . . . . . . . . . . Searches Triggered . | . . . . . . . . . . Construction Impeded . | . . . . . . . . . . Haulers Reinforced . | . . . . . . . . . . Active Scanning Responses . | . . . . . . . . . . Cargo Convoy Interrupts . | . . . . . . . . . . Stealth | -11 -10 -10 -9 -9 -9 -8 -8 -8 -8 --------- Run | Yrd Mat Min Mat Sto Gar Mat Gar Mat Gar Distress Signals 10 | . 1 . . 4 . 3 . 2 . Communications Jammed . | . . . . . . . . . . Distress Signals . | . . . . . . . . . . Times Spotted 179 | . 27 2 13 28 28 40 22 10 9 Peak Tracking Total 9 | . 5 2 5 6 6 4 9 3 4 Tactical Retreats 5 | . 1 . . . 1 1 1 1 . Traps | -11 -10 -10 -9 -9 -9 -8 -8 -8 -8 ------- Run | Yrd Mat Min Mat Sto Gar Mat Gar Mat Gar Traps Triggered 12 | . 1 . 1 3 1 . 4 . 2 Indirectly . | . . . . . . . . . . Trap Hack Attempts . | . . . . . . . . . . Triggered . | . . . . . . . . . . Disarmed . | . . . . . . . . . . Reprogrammed . | . . . . . . . . . . Reused 1 | . . . . . . . . . 1 Traps Extracted . | . . . . . . . . . . Installed 1 | . . . . . . . . . 1 Triggered 1 | . . . . . . . . . 1 Most Traps Carried 2 | . . . . . . . 1 1 2 Machines | -11 -10 -10 -9 -9 -9 -8 -8 -8 -8 ---------- Run | Yrd Mat Min Mat Sto Gar Mat Gar Mat Gar Machines Disabled 20 | . . . . 1 2 2 7 2 6 Max in Single Turn 1 | . . . . 1 1 1 1 . 1 Garrison Relay 5 | . . . . . 1 . 3 . 1 Machines Repaired . | . . . . . . . . . . Machines Dismantled . | . . . . . . . . . . Machines Sabotaged . | . . . . . . . . . . Overloaded Fab Kills . | . . . . . . . . . . Hacking | -11 -10 -10 -9 -9 -9 -8 -8 -8 -8 --------- Run | Yrd Mat Min Mat Sto Gar Mat Gar Mat Gar Machines Accessed 41 | . 8 . 4 7 1 14 2 4 1 Terminals 30 | . 6 . 3 6 1 9 2 2 1 Fabricators . | . . . . . . . . . . Repair Stations 3 | . . . 1 . . 2 . . . Recycling Units 2 | . 2 . . . . . . . . Scanalyzers 3 | . . . . . . 2 . 1 . Garrison Access 3 | . . . . 1 . 1 . 1 . Total Hacks 180 | . 25 . 22 19 3 91 4 14 2 Successful 128 | . 16 . 13 11 2 70 2 13 1 Failed 50 | . 8 . 9 8 1 20 2 1 1 Catastrophic 2 | . 1 . . . . . . . 1 Database Lockouts 2 | . 1 . . . . 1 . . . Manual 53 | . 17 . 8 8 2 14 1 2 1 Terminals 98 | . 23 . 15 17 3 30 4 4 2 Fabricators . | . . . . . . . . . . Repair Stations 34 | . . . 7 . . 27 . . . Recycling Units 2 | . 2 . . . . . . . . Scanalyzers 41 | . . . . . . 32 . 9 . Garrison Access 5 | . . . . 2 . 2 . 1 . Terminal Hacks 43 | . 11 . 5 9 1 13 2 1 1 Part Schematic 3 | . . . . 3 . . . . . Robot Analysis 9 | . 4 . 2 2 . 1 . . . Prototype ID Bank 7 | . 2 . 1 1 . 2 . 1 . Open Door 3 | . . . . 2 . . 1 . . Branch Access Points 1 | . . . 1 . . . . . . Emergency Access Points 3 | . 1 . . . . 1 . . 1 Terminal Index 1 | . 1 . . . . . . . . Scanalyzer Index 1 | . . . . . . 1 . . . Alert Level 1 | . . . . . . 1 . . . Unreport Threat 4 | . . . . . . 4 . . . Locate Traps 3 | . 1 . 1 1 . . . . . Transport Status 1 | . 1 . . . . . . . . Hauler Manifests 1 | . . . . . . 1 . . . Registered Components 2 | . 1 . . . . 1 . . . Zone Layout 1 | . . . . . . 1 . . . Garrison Registry 1 | . . . . . 1 . . . . Security Stations 1 | . . . . . . . 1 . . Fabricator Hacks . | . . . . . . . . . . Repair Station Hacks 28 | . . . 6 . . 22 . . . Scan Component 14 | . . . 3 . . 11 . . . Repair 14 | . . . 3 . . 11 . . . Recycling Unit Hacks . | . . . . . . . . . . Scanalyzer 41 | . . . . . . 32 . 9 . Insert Component 18 | . . . . . . 14 . 4 . Analyze 23 | . . . . . . 18 . 5 . Garrison Access Hacks 4 | . . . . 1 . 2 . 1 . Unlock Access 3 | . . . . 1 . 1 . 1 . Coupler Status 1 | . . . . . . 1 . . . Unauthorized Hacks 12 | . 5 . 2 1 1 1 . 2 . Terminals 10 | . 3 . 2 1 1 1 . 2 . Botnet 7 | . 2 . 1 1 1 1 . 1 . Operators 3 | . 1 . 1 . . . . 1 . Fabricators . | . . . . . . . . . . Repair Stations . | . . . . . . . . . . Recycling Units 2 | . 2 . . . . . . . . Tunnel 2 | . 2 . . . . . . . . Scanalyzers . | . . . . . . . . . . Garrison Access . | . . . . . . . . . . Data Cores Recovered 1 | . 1 . . . . . . . . Used . | . . . . . . . . . . Hacking Detections 37 | . 6 . 4 6 1 14 1 4 1 Full Trace Events 2 | . . . . 1 . 1 . . . Feedback Events . | . . . . . . . . . . Feedback Blocked . | . . . . . . . . . . Robot Schematics Acquired . | . . . . . . . . . . Robots Built . | . . . . . . . . . . Authchips . | . . . . . . . . . . Time . | . . . . . . . . . . Total Robot Build Rating . | . . . . . . . . . . Part Schematics Acquired 21 | . . . . 3 . 14 . 4 . Parts Built . | . . . . . . . . . . Authchips . | . . . . . . . . . . Time . | . . . . . . . . . . Total Part Build Rating . | . . . . . . . . . . Part Studies Acquired . | . . . . . . . . . . Parts Repaired 14 | . . . 3 . . 11 . . . Time 452 | . . . 78 . . 374 . . . Parts Recycled . | . . . . . . . . . . Recycled Matter . | . . . . . . . . . . Retrieved Matter . | . . . . . . . . . . Retrieved Components . | . . . . . . . . . . Parts Scanalyzed 18 | . . . . . . 14 . 4 . Part Schematics Acquired 18 | . . . . . . 14 . 4 . Parts Damaged 1 | . . . . . . 1 . . . Bothacking | -11 -10 -10 -9 -9 -9 -8 -8 -8 -8 ------------ Run | Yrd Mat Min Mat Sto Gar Mat Gar Mat Gar Used RIF Installer 3 | . . . . . 2 . 1 . . Command Fork 1 | . . . . . . . 1 . . Threat Obfuscator 1 | . . . . . 1 . . . . Robots Hacked 12 | . . . . . . 5 7 . . Non-combat 2 | . . . . . . 2 . . . Combat 10 | . . . . . . 3 7 . . Robot Hacks Applied 12 | . . . . . . 5 7 . . ignore_repairs 1 | . . . . . . 1 . . . find_recycling 1 | . . . . . . 1 . . . find_garrison 1 | . . . . . . 1 . . . amplify_resonance 5 | . . . . . . . 5 . . reboot_system 1 | . . . . . . 1 . . . overwrite_iff 1 | . . . . . . . 1 . . formatsys_high 2 | . . . . . . 1 1 . . Relay Couplers Released 20 | . . . . . 4 . 11 . 5 Machine Destruction 20 | . . . . . 4 . 11 . 5 Attached 3 | . . . . . . 2 1 . . Fabnet Peak Effective % . | . . . . . . . . . . Robots Rewired 5 | . . . . . 3 . 2 . . Allies Hacked . | . . . . . . . . . . Hacks Repelled . | . . . . . . . . . . Allies | -11 -10 -10 -9 -9 -9 -8 -8 -8 -8 -------- Run | Yrd Mat Min Mat Sto Gar Mat Gar Mat Gar Total Allies 8 | . . . . . 3 1 4 . . Largest Group 3 | . . . . . 3 3 3 3 1 Highest-Rated Group 75 | . . . . . 24 24 75 75 31 Highest-Rated Ally 39 | . . . . . 8 15 39 39 31 Total Orders 2 | . . . . . . . . . 2 STAY 1 | . . . . . . . . . 1 FOLLOW 1 | . . . . . . . . . 1 Ally Attacks 123 | . . . . . . 70 9 42 2 Total Damage 1465 | . . . . . . 687 65 671 42 Kills 22 | . . . . . . 11 3 7 1 Allies Corrupted . | . . . . . . . . . . Allies Melted . | . . . . . . . . . . Intel | -11 -10 -10 -9 -9 -9 -8 -8 -8 -8 ------- Run | Yrd Mat Min Mat Sto Gar Mat Gar Mat Gar Active Infowar (turns) . | . . . . . . . . . . Robot Analysis Total 9 | . 4 . 2 2 . 1 . . . Derelict Logs Recovered 1 | . . 1 . . . . . . . Drone Launches . | . . . . . . . . . . Drone Recoveries . | . . . . . . . . . . Exploration | -11 -10 -10 -9 -9 -9 -8 -8 -8 -8 ------------- Run | Yrd Mat Min Mat Sto Gar Mat Gar Mat Gar Turns Passed 8918 | 82 1238 519 538 879 1247 2626 1150 196 443 Spaces Moved 4196 | 62 845 429 234 352 478 1011 518 91 176 Core 6 | 5 . . . . 1 . . . . Treads . | . . . . . . . . . . Legs 4190 | 57 845 429 234 352 477 1011 518 91 176 Wheels . | . . . . . . . . . . Hover . | . . . . . . . . . . Flight . | . . . . . . . . . . Fastest Speed 50 | 50 120 120 120 190 190 190 190 190 190 Average Speed 168 | 115 120 120 151 190 209 191 190 190 190 Slowest Speed 450 | 120 120 120 190 190 450 260 190 190 190 Overloaded Moves . | . . . . . . . . . . Propulsion Burnouts . | . . . . . . . . . . Robots Hopped . | . . . . . . . . . . Potential Cave-ins . | . . . . . . . . . . Cave-ins Triggered . | . . . . . . . . . . Exploration Rate (%) 53 | 4 97 97 21 61 55 86 69 16 28 Regions Visited 9 Branch Regions 2 Pre-discovered Areas 2 | . 2 . . . . . . . . Known Exits Taken 4 | . . . 1 1 . 1 . 1 . Unknown Exits Taken 3 | 1 1 1 . . . . . . . Scrap Searched 1 | . . 1 . . . . . . . Spaces Dug 2 | . . . . . . . . . 2 Terrain Destroyed 203 | . 22 . 25 12 60 73 9 . 2 Melee . | . . . . . . . . . . Projectile 3 | . . . . . . 3 . . . AOE 200 | . 22 . 25 12 60 70 9 . 2 Terrain Rammed . | . . . . . . . . . . Walls Destroyed . | . . . . . . . . . . Machines Disabled . | . . . . . . . . . . Actions | -11 -10 -10 -9 -9 -9 -8 -8 -8 -8 --------- Run | Yrd Mat Min Mat Sto Gar Mat Gar Mat Gar Total 5478 | 69 961 435 362 475 613 1594 628 103 238 Wait 524 | . 26 . 69 33 14 382 . . . Move 4188 | 61 844 428 233 351 477 1010 517 91 176 Hop . | . . . . . . . . . . Pick Up 85 | 2 12 2 6 12 9 31 7 . 4 Fast Attach 45 | 6 3 . 7 2 9 17 . . 1 Attach 27 | . 3 . 2 5 1 8 4 1 3 Detach 1 | . . . . . 1 . . . . Swap 82 | . 8 . 7 5 16 28 10 1 7 Drop 83 | . 5 2 9 8 8 38 8 . 5 Fire 359 | . 58 . 29 46 44 72 67 10 33 Melee 35 | . . . . . 29 6 . . . Ram . | . . . . . . . . . . Kick 10 | . 2 3 . 3 . 2 . . . Crush . | . . . . . . . . . . Escape Stasis 38 | . . . . 10 5 . 15 . 8 Rewire . | . . . . . . . . . . Trap 1 | . . . . . . . . . 1 Miscellaneous . | . . . . . . . . . . Route ------- -11/Scrapyard -10/Materials (discovered 5 exits: *Mat x3 / [*Min x2]) -10/Mines (discovered 2 exits: *Mat x2) -9/Materials (discovered 4 exits: Mat / *Min x2 / *Sto) -9/Storage -9/Garrison (discovered 3 exits: *Mat x3) -8/Materials (discovered 4 exits: [*Fac x3] / Gar) -8/Garrison (discovered 3 exits: *Mat x3) -8/Materials -8/Garrison History --------- Turn | Location | Event 7 | -11/Scrapyard | Discovered new exit (range 16) 83 | -11/Scrapyard | Entered Materials 306 | -10/Materials | Build established: Mutant 460 | -10/Materials | Central database locked down 481 | -10/Materials | Discovered new exit (range 15) 565 | -10/Materials | Discovered new exit (range 16) 675 | -10/Materials | Discovered new exit (range 11) 996 | -10/Materials | Lost 3 parts (1p2n) 1097 | -10/Materials | Discovered new exit (range 16) 1182 | -10/Materials | Discovered new exit (range 6) 1321 | -10/Materials | Entered Mines 1449 | -10/Mines | Received a Rocket Launcher from a helpful Derelict 1560 | -10/Mines | Learned location of 1 exit from Materials 1574 | -10/Mines | Discovered new exit (range 3) 1819 | -10/Mines | Discovered new exit (range 10) 1840 | -10/Mines | Entered Materials 1840 | -9/Materials | Evolved 2 slots: Propulsion x1, Utility x1 1841 | -9/Materials | Identified exit to Materials 1877 | -9/Materials | Discovered new exit (range 11) 2019 | -9/Materials | Repaired Aluminum Leg 2049 | -9/Materials | Repaired Aluminum Leg 2077 | -9/Materials | Repaired Med. Laser 2207 | -9/Materials | Identified exit to Mines 2207 | -9/Materials | Identified exit to Storage 2378 | -9/Materials | Entered Storage 2430 | -9/Storage | Destroyed 7 combat bots 2453 | -9/Storage | Lost 3 parts (1n1u1w) 3135 | -9/Storage | Build established: Scavenger-Mutant 3137 | -9/Storage | Garrison activated, responded to threat 3207 | -9/Storage | Core integrity fell below 50% 3213 | -9/Storage | Identified exit to Garrison 3257 | -9/Storage | Entered Garrison 3293 | -9/Garrison | Triggered checkpoint 3354 | -9/Garrison | Destroyed 7 combat bots 3571 | -9/Garrison | Discovered exit to Materials (range 30) 3571 | -9/Garrison | Discovered exit to Materials (range 68) 3571 | -9/Garrison | Discovered exit to Materials (range 67) 3627 | -9/Garrison | Triggered checkpoint 3627 | -9/Garrison | Triggered checkpoint 3636 | -9/Garrison | Core integrity fell below 20% 3848 | -9/Garrison | Installed Relay Interface Framework 3861 | -9/Garrison | Triggered checkpoint 3931 | -9/Garrison | Expanded RIF knowledge: Threat Obfuscation 3946 | -9/Garrison | Garrison Relay disabled 4135 | -9/Garrison | Triggered checkpoint 4263 | -9/Garrison | Triggered checkpoint 4341 | -9/Garrison | Triggered checkpoint 4504 | -9/Garrison | Entered Materials 4504 | -8/Materials | Accompanied by 3 allies 4504 | -8/Materials | Evolved 2 slots: Propulsion x1, Utility x1 5215 | -8/Materials | Repaired Aluminum Leg 5243 | -8/Materials | Repaired Aluminum Leg 5276 | -8/Materials | Repaired Imp. Aluminum Leg 5310 | -8/Materials | Repaired Mni. Grenade Launcher 5311 | -8/Materials | Repaired Imp. Heat Sink 5337 | -8/Materials | Repaired Aluminum Leg 5376 | -8/Materials | Repaired Imp. Heat Sink 5437 | -8/Materials | Repaired Hvy. Particle Gun 5476 | -8/Materials | Repaired Katana 5509 | -8/Materials | Repaired Rocket Launcher 5536 | -8/Materials | Repaired Aluminum Leg 5554 | -8/Materials | Discovered new exit (range 5) 5894 | -8/Materials | Lost 4 parts (2n1u1w) 6186 | -8/Materials | Discovered new exit (range 15) 6602 | -8/Materials | Central database locked down 7026 | -8/Materials | Discovered new exit (range 12) 7064 | -8/Materials | Identified exit to Garrison 7130 | -8/Materials | Entered Garrison 7142 | -8/Garrison | Learned Materials security intel 7186 | -8/Garrison | Triggered checkpoint 7244 | -8/Garrison | Expanded RIF knowledge: Command Fork 7402 | -8/Garrison | Core integrity fell below 50% 7523 | -8/Garrison | Discovered new exit (range 8) 7532 | -8/Garrison | Triggered checkpoint 7628 | -8/Garrison | Garrison Relay disabled 7722 | -8/Garrison | Triggered checkpoint 7812 | -8/Garrison | Triggered checkpoint 7872 | -8/Garrison | Garrison Relay disabled 7890 | -8/Garrison | Garrison Relay disabled 7968 | -8/Garrison | Discovered new exit (range 13) 8132 | -8/Garrison | Triggered checkpoint 8152 | -8/Garrison | Triggered checkpoint 8252 | -8/Garrison | Triggered checkpoint 8261 | -8/Garrison | Discovered new exit (range 10) 8280 | -8/Garrison | Entered Materials 8280 | -8/Materials | Accompanied by 3 allies 8377 | -8/Materials | Garrison activated, responded to threat 8476 | -8/Materials | Identified exit to Garrison 8476 | -8/Materials | Entered Garrison 8476 | -8/Garrison | Accompanied by 1 ally 8605 | -8/Garrison | Triggered checkpoint 8710 | -8/Garrison | Garrison Relay disabled 8828 | -8/Garrison | Triggered checkpoint 8902 | -8/Garrison | Core integrity fell below 20% 8919 | -8/Garrison | Destroyed by C-17 Slicer with Blade Saw Last Messages --------------- 08867_ Dropped Nuclear Core. 08868_ Dropped Ion Engine. 08869_ Acquired Nuclear Core. 08872_ Dropped Aluminum Leg. 08890_ Gravmag System melted. 08890_ Imp. Heat Sink melted. 08890_ P-60 Hacker destroyed. 08896_ The unstable cave ceiling collapses. 08896_ Particle Gun crushed. 08898_ Flexi-carbon Leg severed. 08902_ Destroyed Gravmag System. 08904_ Imp. Medium Armor Plating destroyed. Garrison Door activated. 08905_ Acquired Aluminum Leg. 08907_ Aluminum Leg severed. 08910_ Carbon-fiber Leg severed. 08910_ P-60 Hacker resets C-17 Slicer, system corruption cleaned. 08913_ Aluminum Leg destroyed. 08916_ Hvy. Particle Gun severed. 08916_ P-60 Hacker destroyed. Map ----- +----------------------------------------------------+ | ?????????????????????????????????????????????????? | | ????????????????????????+??????????????????????+?? | | ?????????????????????????????????????????????????? | | ?????????????????????????????????????????????????? | | ???????????????????????????????????????????+?????? | | ??+??????????????????????????????????????????????? | | ???????????????????????+?????????????????????????? | | ?????????????????????????????????????????????????? | | ?????????????+??+????????????????????????????????? | | ???????????????????????????????+?????????????????? | | ???????????????????????? ???????????????????????? | | ??+???????????????????## ?????????+?????????????? | | ??????????????????+???# ??????????????????????? | | ?????????????????????? ?? ?? ???????????????? | | ?????????????????????? ?? ? ??? ????????????? | | ??????????????????????# #? ? #? ????????????? | | ????????????????????### ## ? ## #???????????? | | ????????????????????# ? "???????????? | | ????????????????????? ? ????????????? | | ????????????????????? ? ?????????????? | | ?????????????????????? g ?% ???????????????? | | ??????????????????????#g= ##%/= #????#???????????? | | ?????????????########## # ## #???????????? | | ?????????????# * ^%! #???????????? | | ????????????????? c % %! ; ??????+?+ | | ??????????????????????#!=@[ % ! ^ #???????????? | | ??????????????????????#=[!## ##????????????/??? | | ??????????????????????# #?????#??????????????+?+ | | ??????????????????????# %#?+#???????????????????? | | ??????????????????????# **## #???????????????????? | | ??????????????????????+ ; #???????????????????? | | ??????????????????????# ####???????????????????? | | ??????????????????????# #??????????????????????? | | ?#############++####### #??????????????+???????? | | ?+ #??????????????????????? | | ?+ #??????+??????????????+? | | ?# #??????????????????????? | | ?# ######################??????????????????????? | | ?# #???????????????????????????????????????????? | | ## #???????????????????????????????????????????? | | ## #???????????????????????????????????????????? | | ## #???????????????????????????????????????????? | | ?# #???????????????????????????????????????????? | | ?# #?###????##?????????????????????????????????? | | ?# #?# ???? ?????????????????????????????????? | | ?# #?# """" "??"??????????????????????????????? | | ?# ### "&&" "? "??????????????????????????????? | | ?# ## "&&? " "??????????????????????????????? | | ?# ## """ """ #????????????????????????????? | | ## ## #????????????????????????????? | +----------------------------------------------------+ Best States ------------- Heat Dissipation 45 Energy Generation 18 Energy Capacity 275 Matter Stores 300 Matter Capacity 300 Sight Range 16 Terrain Scan Density 10 Armor Coverage 225 Propulsion Shielding 66 Evasion (%) 55 Offensive Hacking 10 Defensive Hacking 10 Relay Coupler Types 2 Relay Coupler Value 34 Item Schematics ----------------- System Shield | -9/Storage | Hacked Spread Laser | -9/Storage | Hacked Arm. Wheel | -9/Storage | Hacked Ion Engine | -8/Materials | Scanalyzed Hacking Suite | -8/Materials | Scanalyzed Carbon-fiber Leg | -8/Materials | Scanalyzed Rocket Launcher | -8/Materials | Scanalyzed Imp. Heat Sink | -8/Materials | Scanalyzed Insulated Plating | -8/Materials | Scanalyzed Ion Cannon | -8/Materials | Scanalyzed Remote Datajack | -8/Materials | Scanalyzed Pulse Rifle | -8/Materials | Scanalyzed Imp. Propulsion Shielding | -8/Materials | Scanalyzed Hvy. Particle Gun | -8/Materials | Scanalyzed Imp. Medium Laser | -8/Materials | Scanalyzed Hrd. Light Armor Plating | -8/Materials | Scanalyzed Mni. Grenade Launcher | -8/Materials | Scanalyzed Imp. Medium Armor Plating | -8/Materials | Scanalyzed Hvy. Particle Cannon | -8/Materials | Scanalyzed Aluminum Leg | -8/Materials | Scanalyzed Imp. Aluminum Leg | -8/Materials | Scanalyzed Robot Schematics ------------------ None Fabricated ------------ Nothing Repaired ---------- Aluminum Leg | 42% | -9/Materials Aluminum Leg | 71% | -9/Materials Med. Laser | 52% | -9/Materials Aluminum Leg | 18% | -8/Materials Aluminum Leg | 17% | -8/Materials Imp. Aluminum Leg | 34% | -8/Materials Mni. Grenade Launcher | 42% | -8/Materials Aluminum Leg | 65% | -8/Materials Imp. Heat Sink | 62% | -8/Materials Hvy. Particle Gun | 75% | -8/Materials Katana | 70% | -8/Materials Rocket Launcher | 74% | -8/Materials Aluminum Leg | 75% | -8/Materials Studied --------- None Alien Tech Used ----------------- None Achievements -------------- None Challenges ------------ None Game ------ Seed FocalCommDesublimator Manual? 0 Play Time 01:21:05 Cumulative 234.1 hours Start 2025.11.08 @ 20:32:36 End 2025.11.08 @ 22:01:17 Sessions 1 Manual Loads 0 Difficulty Rogue Special Mode None Game No. 239 Rogue 235 Adventurer 3 Explorer 1 Win Type - Total 1 Types 1/0/0/0/0/0/0/0/0/0 Lore% 74 Gallery% 74 Achievement% 57 Wizard Run 0 Options --------- Layout 0 ASCII 0 Keyboard 0 Movement Mouse Keybinds 0 Fullscreen 2 Font 18/SmallcapsGlow Map View 76x50 Zoom Use 0% Tactical HUD 1 Map Filters NONE Filters NONE Steam 1 RUN: a834f9af-26eb-4d69-b5c2-027b558281f6